[Event "41st Amateur D7"]
[Site "ChessGUI4"]
[Date "2013.07.05"]
[Round "7.4"]
[White "Waxman 2011"]
[Black "Tigran 2.3 64-bit"]
[Result "0-1"]
[BlackElo "2289"]
[ECO "E15"]
[EventDate "2013.??.??"]
[TimeControl "40/1500:40/1500:40/1500"]
[WhiteElo "2256"]

{ i5 Quad } 1.d4 { [%eval 0,1] [%emt 0:00:00] } 1...Nf6
{ [%eval 0,1] [%emt 0:00:00] } 2.c4 { [%eval 0,1] [%emt 0:00:00] } 2...e6
{ [%eval 0,1] [%emt 0:00:00] } 3.Nf3 { [%eval 0,1] [%emt 0:00:00] } 3...b6
{ [%eval 0,1] [%emt 0:00:00] } 4.g3 { [%eval 0,1] [%emt 0:00:00] } 4...Ba6
{ [%eval 0,1] [%emt 0:00:00] } 5.b3 { [%eval 0,1] [%emt 0:00: 00] } 5...Bb4+
{ [%eval 0,1] [%emt 0:00:00] } 6.Bd2 { [%eval 0,1] [%emt 0:00:00] } 6...Be7
{ [%eval 0,1] [%emt 0:00:00] } 7.Bg2 { [%eval 0,1] [%emt 0:00:00] } 7...c6
{ [%eval 0, 1] [%emt 0:00:00] } 8.O-O { [%eval 0,1] [%emt 0:00:00] } 8...d5
{ [%eval 0,1] [%emt 0: 00:00] } 9.Bf4 { [%eval -8,12] [%emt 0:01:04] }
9...Nbd7 { [%eval -15,13] [%emt 0:00: 42] (O-O) } 10.Ne5
{ [%eval -14,12] [%emt 0:01:11] (Nbd2) } 10...Nxe5
{ [%eval 18,14] [%emt 0:00:39] (Nxe5) } 11.Bxe5
{ [%eval -14,12] [%emt 0:00:43] (Bxe5) } 11...O-O
{ [%eval 8,13] [%emt 0:00:42] (O-O) } 12.Qd3
{ [%eval -23,11] [%emt 0:00:30] (Nc3) } 12...Ng4
{ [%eval 48,14] [%emt 0:00:42] (Ng4) } 13.Bf4
{ [%eval -47,12] [%emt 0:01: 20] (Bf4) } 13...dxc4
{ [%eval 44,14] [%emt 0:00:42] (Bf6) } 14.bxc4
{ [%eval -69,12] [%emt 0:01:06] (bxc4) } 14...Bf6
{ [%eval 38,13] [%emt 0:00:41] (Bf6) } 15.Rd1
{ [%eval -19,11] [%emt 0:00:33] (Rd1) } 15...e5
{ [%eval 43,13] [%emt 0:00:43] (e5) } 16.Bf3
{ [%eval -76,12] [%emt 0:00:38] (dxe5) } 16...Nxf2
{ [%eval 114,14] [%emt 0:00:43] (exf4) } 17.Kxf2
{ [%eval -80,11] [%emt 0:00:14] (Kxf2) } 17...exf4
{ [%eval 122,13] [%emt 0:00:42] (exf4) } 18.gxf4
{ [%eval -117,11] [%emt 0:00:40] (gxf4) } 18...Qd7
{ [%eval 119,12] [%emt 0:00:44] (c5) } 19.Kg2
{ [%eval -92,11] [%emt 0:00:40] (e3) } 19...Rad8
{ [%eval 112,13] [%emt 0:00:44] (Rfe8) } 20.e3
{ [%eval -118,12] [%emt 0: 00:38] (e3) } 20...Rfe8
{ [%eval 112,13] [%emt 0:00:44] (Qe6) } 21.Nd2
{ [%eval -135, 12] [%emt 0:00:40] (Nc3) } 21...Bc8
{ [%eval 149,13] [%emt 0:00:44] (Qe6) } 22.Kh1
{ [%eval -132,12] [%emt 0:00:38] (Kh1) } 22...Qh3
{ [%eval 133,13] [%emt 0:00:35] (Qh3) } 23.Rac1
{ [%eval -145,12] [%emt 0:00:41] (Rac1) } 23...Bf5
{ [%eval 145,12] [%emt 0: 00:45] (Bf5) } 24.Qb3
{ [%eval -143,12] [%emt 0:00:38] (Qb3) } 24...Bh4
{ [%eval 154, 12] [%emt 0:00:45] (Bh4) } 25.Bg2
{ [%eval -150,12] [%emt 0:00:40] (Bg2) } 25...Qxe3
{ [%eval 190,13] [%emt 0:00:39] (Qxe3) } 26.Bxc6
{ [%eval -174,11] [%emt 0:00:14] (Bxc6) } 26...Rxd4
{ [%eval 188,12] [%emt 0:00:46] (Qf2) } 27.Nf3
{ [%eval -172,11] [%emt 0:00:43] (Nf3) } 27...Rxd1+
{ [%eval 279,13] [%emt 0:00:46] (Rxd1) } 28.Rxd1
{ [%eval -266,12] [%emt 0:00:27] (Rxd1) } 28...Qe2
{ [%eval 267,14] [%emt 0:00:47] (Qe2) } 29.Nd4
{ [%eval -233,12] [%emt 0:00:47] (Nd4) } 29...Be4+
{ [%eval 266,15] [%emt 0: 00:43] (Be4) } 30.Bxe4
{ [%eval -228,14] [%emt 0:00:10] (Bxe4) } 30...Qxe4+
{ [%eval 267,16] [%emt 0:00:48] (Qxe4) } 31.Qf3
{ [%eval -260,16] [%emt 0:00:51] (Qf3) } 31...Bf6
{ [%eval 250,16] [%emt 0:00:48] (Bf6) } 32.Qxe4
{ [%eval -251,15] [%emt 0:00: 15] (Qxe4) } 32...Rxe4
{ [%eval 254,16] [%emt 0:00:49] (Rxe4) } 33.Nc6
{ [%eval -269, 15] [%emt 0:01:16] (Nb5) } 33...Rxf4
{ [%eval 257,15] [%emt 0:00:50] (Rxf4) } 34.Rc1
{ [%eval -274,15] [%emt 0:01:06] (Rc1) } 34...Rf2
{ [%eval 259,15] [%emt 0:00:44] (Rf2) } 35.a4
{ [%eval -275,15] [%emt 0:00:51] (a3) } 35...Bg5
{ [%eval 275,15] [%emt 0:00:44] (h6) } 36.Re1
{ [%eval -279,14] [%emt 0:00:35] (Re1) } 36...h6
{ [%eval 276,14] [%emt 0:00:54] (Kf8) } 37.Nxa7
{ [%eval -280,16] [%emt 0:00:46] (a5) } 37...Bf4
{ [%eval 288, 16] [%emt 0:00:43] (Bf4) } 38.Re4
{ [%eval -280,16] [%emt 0:00:41] (Nc8) } 38...Rxh2+
{ [%eval 282,15] [%emt 0:01:01] (Rxh2) } 39.Kg1
{ [%eval -289,3] [%emt 0:00:00] (Kg1) } 39...Bg3
{ [%eval 287,15] [%emt 0:01:00] (Bc7) } 40.Rg4
{ [%eval -280,16] [%emt 0:00:31] (Re8) } 40...Bd6
{ [%eval 306,16] [%emt 0:01:15] (Bc7) } 41.Nc8
{ [%eval -273,16] [%emt 0:00:29] (Rd4) } 41...Rd2
{ [%eval 304,16] [%emt 0:00:34] (Rd2) } 42.Nxd6
{ [%eval -283,16] [%emt 0:00:25] (Nxd6) } 42...Rxd6
{ [%eval 325,16] [%emt 0: 00:31] (Rxd6) } 43.Re4
{ [%eval -294,17] [%emt 0:00:33] (Kh2) } 43...Rd1+
{ [%eval 336, 17] [%emt 0:00:34] (Rd1) } 44.Kf2
{ [%eval -287,17] [%emt 0:00:29] (Kf2) } 44...Kf8
{ [%eval 336,17] [%emt 0:00:34] (Kf8) } 45.c5
{ [%eval -308,17] [%emt 0:00:57] (Re5) } 45...bxc5
{ [%eval 355,15] [%emt 0:00:34] (bxc5) } 46.Ke2
{ [%eval -323,18] [%emt 0:00:52] (Ke2) } 46...Ra1
{ [%eval 360,16] [%emt 0:00:34] (Rd6) } 47.Kd2
{ [%eval -304,17] [%emt 0:00:36] (Kd3) } 47...g5
{ [%eval 385,15] [%emt 0:00:33] (g5) } 48.Kc2
{ [%eval -342,16] [%emt 0:00:33] (Rc4) } 48...f5
{ [%eval 395,16] [%emt 0:00: 34] (f5) } 49.Re5
{ [%eval -358,17] [%emt 0:00:27] (Rc4) } 49...f4
{ [%eval 431,15] [%emt 0:00:28] (f4) } 50.Kb3
{ [%eval -356,17] [%emt 0:00:54] (Kb3) } 50...c4+
{ [%eval 437,15] [%emt 0:00:29] (Rb1) } 51.Kb4
{ [%eval -385,17] [%emt 0:00:41] (Kb4) } 51...Kg7
{ [%eval 446,16] [%emt 0:00:28] (c3) } 52.Rf5
{ [%eval -406,16] [%emt 0:00:37] (Rf5) } 52...c3
{ [%eval 504,17] [%emt 0:00:33] (c3) } 53.Kxc3
{ [%eval -493, 18] [%emt 0:01:17] (Kb3) } 53...Rxa4
{ [%eval 516,15] [%emt 0:00:36] (Rxa4) } 54.Rb5
{ [%eval -526,13] [%emt 0:00:27] (Kb3) } 54...f3
{ [%eval 539,15] [%emt 0:00:36] (Ra7) } 0-1

[Event "41st Amateur D7"]
[Site "ChessGUI4"]
[Date "2013.07.05"]
[Round "7.5"]
[White "Gibbon 2.57a 64-bit"]
[Black "Butcher 1.64 64-bit"]
[Result "1-0"]
[BlackElo "2355"]
[ECO "E81"]
[EventDate "2013.??.??"]
[TimeControl "40/1500:40/1500:40/1500"]
[WhiteElo "2251"]

{ i5 Quad } 1.d4 { [%eval 0,1] [%emt 0:00:00] } 1...d6
{ [%eval 0,1] [%emt 0:00:00] } 2.e4 { [%eval 0,1] [%emt 0:00:00] } 2...Nf6
{ [%eval 0,1] [%emt 0:00:00] } 3.f3 { [%eval 0,1] [%emt 0:00:00] } 3...c5
{ [%eval 0,1] [%emt 0:00:00] } 4.d5 { [%eval 0,1] [%emt 0:00:00] } 4...g6
{ [%eval 0,1] [%emt 0:00:00] } 5.c4 { [%eval 0,1] [%emt 0:00: 00] } 5...Bg7
{ [%eval 0,1] [%emt 0:00:00] } 6.Nc3 { [%eval 0,1] [%emt 0:00:00] } 6...O-O
{ [%eval 0,1] [%emt 0:00:00] } 7.Bg5 { [%eval 0,1] [%emt 0:00:00] } 7...e6
{ [%eval 0,1] [%emt 0:00:00] } 8.Qd2 { [%eval 0,1] [%emt 0:00:00] } 8...exd5
{ [%eval 0,1] [%emt 0: 00:00] } 9.Nxd5 { [%eval 21,14] [%emt 0:01:50] }
9...Be6 { [%eval 59,11] [%emt 0:01: 06] (Be6) } 10.Nf4
{ [%eval 15,13] [%emt 0:01:40] (O-O-O) } 10...Bc8
{ [%eval 61,11] [%emt 0:00:50] (Bd7) } 11.Nfe2
{ [%eval 14,12] [%emt 0:00:23] (Nd5) } 11...Qb6
{ [%eval 25,12] [%emt 0:00:59] (Be6) } 12.Nc3
{ [%eval 27,12] [%emt 0:00:30] (O-O-O) } 12...Nc6
{ [%eval 27,11] [%emt 0:00:51] (Nc6) } 13.O-O-O
{ [%eval 18,12] [%emt 0:00:52] (O-O-O) } 13...Be6
{ [%eval 23,11] [%emt 0:01:05] (Qa5) } 14.Kb1
{ [%eval 12,9] [%emt 0:00:26] (Qxd6) } 14...Ne5
{ [%eval -19,11] [%emt 0:01:04] (Rfc8) } 15.Qxd6
{ [%eval 27,13] [%emt 0:00:47] (Bxf6) } 15...Nxc4
{ [%eval 8,11] [%emt 0:01: 03] (Nxc4) } 16.Bxc4
{ [%eval 30,13] [%emt 0:00:25] (Qxb6) } 16...Bxc4
{ [%eval 34,12] [%emt 0:01:31] (Bxc4) } 17.Nge2
{ [%eval 32,13] [%emt 0:00:51] (Qxb6) } 17...h6
{ [%eval -11,11] [%emt 0:00:59] (Rfe8) } 18.Be3
{ [%eval 18,12] [%emt 0:00:28] (Bxf6) } 18...Rfd8
{ [%eval -40,11] [%emt 0:00:57] (Rfc8) } 19.Qxc5
{ [%eval 57,13] [%emt 0:00:41] (Qxb6) } 19...Bd3+
{ [%eval -41,10] [%emt 0:00:55] (Qa6) } 20.Ka1
{ [%eval 36,13] [%emt 0:00:16] (Rxd3) } 20...Qa6
{ [%eval -22,11] [%emt 0:00:48] (Qa6) } 21.Nc1
{ [%eval 43,12] [%emt 0:00:32] (Nc1) } 21...Rdc8
{ [%eval -38,11] [%emt 0:00: 47] (b6) } 22.Qb4
{ [%eval 72,13] [%emt 0:00:32] (Qb4) } 22...Bc4
{ [%eval -26,10] [%emt 0:00:47] (Bf8) } 23.Qa4
{ [%eval 74,12] [%emt 0:00:34] (Bd4) } 23...Qe6
{ [%eval -9,11] [%emt 0:00:47] (Qe6) } 24.Nd3
{ [%eval 77,11] [%emt 0:00:15] (Nb3) } 24...Bf8
{ [%eval -26,10] [%emt 0:00:45] (b6) } 25.Rd2
{ [%eval 73,10] [%emt 0:00: 19] (Bd4) } 25...a5
{ [%eval -6,10] [%emt 0:00:45] (Rc6) } 26.Rc1
{ [%eval 69,11] [%emt 0:00:16] (Rc1) } 26...g5
{ [%eval -18,9] [%emt 0:00:44] (b5) } 27.Qd1
{ [%eval 81,11] [%emt 0:00:18] (g3) } 27...b5
{ [%eval 8,9] [%emt 0:00:37] (b5) } 28.b3
{ [%eval 82,11] [%emt 0:00:25] (Ne2) } 28...Bxd3
{ [%eval 13,10] [%emt 0:00:43] (Bxd3) } 29.Rxd3
{ [%eval 89,11] [%emt 0:00:14] (Rxd3) } 29...Ba3
{ [%eval 21,10] [%emt 0:00: 39] (Bg7) } 30.Rc2
{ [%eval 75,11] [%emt 0:00:10] (Rc2) } 30...Qc6
{ [%eval 53,10] [%emt 0:00:37] (Qa6) } 31.Kb1
{ [%eval 108,11] [%emt 0:00:14] (Kb1) } 31...Qb7
{ [%eval 90,10] [%emt 0:00:34] (Qe8) } 32.h4
{ [%eval 153,12] [%emt 0:00:13] (h4) } 32...gxh4
{ [%eval 156,11] [%emt 0:00:41] (gxh4) } 33.Bxh6
{ [%eval 204,12] [%emt 0: 00:15] (Bxh6) } 33...Be7
{ [%eval 196,10] [%emt 0:00:36] (b4) } 34.Qd2
{ [%eval 252,13] [%emt 0:00:25] (Bg5) } 34...Kh7
{ [%eval 262,10] [%emt 0:00:34] (Kh7) } 35.Qg5
{ [%eval 263,12] [%emt 0:00:11] (Bg5) } 35...Ne8
{ [%eval 284,11] [%emt 0:00:30] (Ne8) } 36.Qh5
{ [%eval 294,11] [%emt 0:00:19] (Qh5) } 36...Kg8
{ [%eval 316,10] [%emt 0:00: 29] (Kg8) } 37.Qg4+
{ [%eval 325,12] [%emt 0:00:19] (Qg4) } 37...Kh7
{ [%eval 376,10] [%emt 0:00:27] (Kh8) } 38.Bg5
{ [%eval 318,12] [%emt 0:00:31] (Bg5) } 38...Bxg5
{ [%eval 365,9] [%emt 0:00:24] (Bxg5) } 39.Qxg5
{ [%eval 328,11] [%emt 0:00:02] (Qxg5) } 39...Ra6
{ [%eval 376,10] [%emt 0:00:20] (Ra6) } 40.Qf5+
{ [%eval 326,11] [%emt 0:00:07] (Qf5) } 40...Rg6
{ [%eval 388,11] [%emt 0:00:13] (Rg6) } 41.Rd7
{ [%eval 342,14] [%emt 0:01:09] (Rd7) } 41...Qc6
{ [%eval 416,12] [%emt 0:00:49] (Qc6) } 42.Qxf7+
{ [%eval 371,14] [%emt 0:01:53] (Qxf7) } 42...Ng7
{ [%eval 446,12] [%emt 0: 00:49] (Ng7) } 43.Rc1
{ [%eval 374,14] [%emt 0:00:57] (Rc1) } 43...Rf8
{ [%eval 441,12] [%emt 0:00:47] (Rf8) } 44.Qxf8
{ [%eval 384,14] [%emt 0:00:38] (Qxf8) } 44...Qxd7
{ [%eval 473,13] [%emt 0:00:48] (Qxd7) } 45.Nd5
{ [%eval 391,14] [%emt 0:01:13] (Nd5) } 45...Qd6
{ [%eval 478,13] [%emt 0:00:48] (Qd6) } 46.Qxd6
{ [%eval 427,15] [%emt 0:00:38] (Qxd6) } 46...Rxd6
{ [%eval 484,14] [%emt 0:00:52] (Rxd6) } 47.Rc7
{ [%eval 394,15] [%emt 0:00:18] (Rh1) } 47...Rg6
{ [%eval 435,13] [%emt 0:00:49] (Rg6) } 48.Nf4
{ [%eval 417,17] [%emt 0:00:26] (Nf4) } 48...Rg5
{ [%eval 445,13] [%emt 0:00: 51] (Rg3) } 49.Rc1
{ [%eval 450,17] [%emt 0:00:47] (a3) } 49...Nh5
{ [%eval 422,14] [%emt 0:00:51] (Kg8) } 50.Nxh5
{ [%eval 498,16] [%emt 0:00:19] (Nxh5) } 50...Rxh5
{ [%eval 383,13] [%emt 0:00:50] (Rxh5) } 51.f4
{ [%eval 480,17] [%emt 0:00:34] (Rh1) } 51...h3
{ [%eval 428,13] [%emt 0:00:49] (Rh6) } 52.gxh3
{ [%eval 496,18] [%emt 0:00:54] (Rh1) } 52...Rxh3
{ [%eval 403,14] [%emt 0:00:48] (b4) } 53.Rc5
{ [%eval 520, 18] [%emt 0:00:25] (Rc5) } 53...Rh4
{ [%eval 397,14] [%emt 0:00:44] (b4) } 54.Rxb5
{ [%eval 632,19] [%emt 0:00:25] (Rf5) } 54...Rxf4
{ [%eval 428,14] [%emt 0:00:41] (Rxf4) } 55.Rxa5
{ [%eval 632,18] [%emt 0:00:06] (Rxa5) } 55...Rxe4
{ [%eval 434,14] [%emt 0: 00:40] (Rxe4) } 56.Kb2
{ [%eval 652,19] [%emt 0:00:55] (a4) } 56...Re2+
{ [%eval 442, 14] [%emt 0:00:40] (Kg6) } 57.Kc3
{ [%eval 673,19] [%emt 0:00:41] (Kc3) } 57...Re3+
{ [%eval 445,13] [%emt 0:00:40] (Kg6) } 58.Kd4
{ [%eval 722,18] [%emt 0:00:22] (Kd4) } 58...Rf3
{ [%eval 470,13] [%emt 0:00:37] (Rg3) } 59.b4
{ [%eval 774,18] [%emt 0:00:23] (Re5) } 59...Rf4+
{ [%eval 466,14] [%emt 0:00:32] (Kg6) } 60.Kc5
{ [%eval 774, 19] [%emt 0:00:28] (Kc3) } 60...Rf5+
{ [%eval 473,14] [%emt 0:00:39] (Rf5) } 61.Kd6
{ [%eval 795,20] [%emt 0:01:15] (Kd6) } 61...Rf6+
{ [%eval 480,14] [%emt 0:00:32] (Rf6) } 62.Ke7
{ [%eval 795,19] [%emt 0:01:18] (Ke5) } 62...Rf1
{ [%eval 509,13] [%emt 0:00: 38] (Kg6) } 63.b5
{ [%eval 844,19] [%emt 0:00:33] (b5) } 63...Rb1
{ [%eval 535,13] [%emt 0:00:33] (Rb1) } 64.Kd6
{ [%eval 854,19] [%emt 0:00:17] (Kd7) } 64...Kg7
{ [%eval 605,14] [%emt 0:00:37] (Kg6) } 65.a4
{ [%eval 964,18] [%emt 0:00:20] (Kc7) } 65...Kf6
{ [%eval 651,14] [%emt 0:00:55] (Kf6) } 66.Kc7
{ [%eval 1136,19] [%emt 0:00:27] (Kc7) } 66...Rc1+
{ [%eval 722,14] [%emt 0:00:34] (Rc1) } 67.Kb8
{ [%eval 1163,19] [%emt 0:00:51] (Kb8) } 67...Rb1
{ [%eval 865,16] [%emt 0:00:48] (Rb1) } 68.Ka7
{ [%eval 1216,18] [%emt 0:00:31] (Ra8) } 68...Ra1
{ [%eval 1,1] [%emt 0:00:00] (Ke5) } 69.b6 { [%eval 1317,16] [%emt 0:00:22] }
69...Ra2 { [%eval 1,1] [%emt 0:00:00] (Rc1) } 70.b7
{ [%eval -31966,18] [%emt 0:00:32] } 70...Ra3
{ [%eval 1,1] [%emt 0:00: 00] (Rb2) } 71.b8=Q
{ [%eval -31786,16] [%emt 0:00:09] } 71...Rxa4
{ [%eval 1,1] [%emt 0:00:00] (Rd3) } 1-0

[Event "41st Amateur D7"]
[Site "ChessGUI4"]
[Date "2013.07.05"]
[Round "8.1"]
[White "MadChess 1.2"]
[Black "Carballo 0.8"]
[Result "1-0"]
[BlackElo "2273"]
[ECO "E23"]
[EventDate "2013.??.??"]
[TimeControl "40/1500:40/1500:40/1500"]
[WhiteElo "2200"]

{ i5 Quad } 1.d4 { [%eval 0,1] [%emt 0:00:00] } 1...Nf6
{ [%eval 0,1] [%emt 0:00:00] } 2.c4 { [%eval 0,1] [%emt 0:00:00] } 2...e6
{ [%eval 0,1] [%emt 0:00:00] } 3.Nc3 { [%eval 0,1] [%emt 0:00:00] } 3...Bb4
{ [%eval 0,1] [%emt 0:00:00] } 4.Qb3 { [%eval 0, 1] [%emt 0:00:00] } 4...c5
{ [%eval 0,1] [%emt 0:00:00] } 5.dxc5 { [%eval 0,1] [%emt 0:00:00] } 5...Nc6
{ [%eval 0,1] [%emt 0:00:00] } 6.Bg5 { [%eval 0,1] [%emt 0:00:00] } 6...Bxc5
{ [%eval 0,1] [%emt 0:00:00] } 7.Nf3 { [%eval 0,1] [%emt 0:00:00] } 7...b6
{ [%eval 0,1] [%emt 0:00:00] } 8.e4 { [%eval 0,1] [%emt 0:00:00] } 8...Be7
{ [%eval 0,1] [%emt 0:00:00] } 9.h3 { [%eval -9,10] [%emt 0:00:30] } 9...O-O
{ [%eval -38,13] [%emt 0:00:37] (Bb7) } 10.O-O-O
{ [%eval -10,10] [%emt 0:00:18] (O-O-O) } 10...h6
{ [%eval -26,14] [%emt 0:00:36] (Bb7) } 11.Bxf6
{ [%eval -8,10] [%emt 0:00:24] (Be3) } 11...Bxf6
{ [%eval -24,14] [%emt 0:00:35] (Bxf6) } 12.Nb5
{ [%eval -6,11] [%emt 0:00: 56] (Nb5) } 12...Ba6
{ [%eval -11,13] [%emt 0:00:34] (Be7) } 13.Nd6
{ [%eval 1,11] [%emt 0:00:33] (Nd6) } 13...Qc7
{ [%eval -18,13] [%emt 0:00:33] (Qc7) } 14.Qa3
{ [%eval -13,10] [%emt 0:00:16] (Qe3) } 14...Be7
{ [%eval 3,14] [%emt 0:00:32] (Na5) } 15.Kb1
{ [%eval -26,10] [%emt 0:00:23] (Kb1) } 15...Bb7
{ [%eval 9,13] [%emt 0:00:32] (Na5) } 16.c5
{ [%eval -30,10] [%emt 0:00:28] (Nb5) } 16...Nd8
{ [%eval 34,13] [%emt 0: 00:31] (Nb8) } 17.Nxb7
{ [%eval -2,12] [%emt 0:00:40] (Nxb7) } 17...Qxb7
{ [%eval 47, 15] [%emt 0:00:30] (Qxb7) } 18.Qa4
{ [%eval -60,12] [%emt 0:00:56] (Qa4) } 18...Nc6
{ [%eval 57,15] [%emt 0:00:29] (Nc6) } 19.Ba6
{ [%eval -66,12] [%emt 0:00:34] (Ba6) } 19...Qc7
{ [%eval 59,16] [%emt 0:00:29] (Qc7) } 20.cxb6
{ [%eval -59,11] [%emt 0:00:16] (cxb6) } 20...axb6
{ [%eval 89,15] [%emt 0:00:28] (axb6) } 21.Qc4
{ [%eval -118,12] [%emt 0:01:05] (Qc4) } 21...Bc5
{ [%eval 79,13] [%emt 0:00:27] (Bc5) } 22.Qe2
{ [%eval -107,11] [%emt 0:00:27] (a3) } 22...Bxf2
{ [%eval 100,13] [%emt 0:00:26] (Bxf2) } 23.Bb5
{ [%eval -119,10] [%emt 0:00:28] (Rhf1) } 23...Bc5
{ [%eval 98,13] [%emt 0:00:26] (Bc5) } 24.a3
{ [%eval -118,10] [%emt 0:00:37] (a3) } 24...Rfd8
{ [%eval 91,12] [%emt 0:00:25] (Rfd8) } 25.Rhf1
{ [%eval -112,10] [%emt 0:00:24] (b4) } 25...g5
{ [%eval 90,11] [%emt 0:00:24] (Bd6) } 26.Rd3
{ [%eval -87,8] [%emt 0: 00:28] (g4) } 26...Na7
{ [%eval 91,11] [%emt 0:00:24] (d6) } 27.Nxg5
{ [%eval 0,11] [%emt 0:01:31] (Bc4) } 27...hxg5
{ [%eval -90,12] [%emt 0:00:23] (hxg5) } 28.Qh5
{ [%eval 107,13] [%emt 0:01:06] (Qh5) } 28...d5
{ [%eval -107,12] [%emt 0:00:23] (d5) } 29.Qxg5+
{ [%eval 249,13] [%emt 0:00:26] (Qxg5) } 29...Kf8
{ [%eval -104,13] [%emt 0: 00:22] (Kf8) } 30.Qh6+
{ [%eval 380,13] [%emt 0:00:34] (Qh6) } 30...Kg8
{ [%eval -541, 13] [%emt 0:00:21] (Kg8) } 31.Rxf7
{ [%eval 674,13] [%emt 0:00:43] (Rxf7) } 31...Kxf7
{ [%eval -966,11] [%emt 0:00:21] (Kxf7) } 32.Qh7+
{ [%eval -31782,15] [%emt 0:01: 18] (Qh7) } 32...Kf6
{ [%eval 31760,10] [%emt 0:00:03] (Kf6) } 33.Rf3+
{ [%eval -31780, 14] [%emt 0:00:30] (Qh6) } 33...Qf4
{ [%eval 31760,9] [%emt 0:00:01] (Qf4) } 34.e5+
{ [%eval -31778,15] [%emt 0:01:00] (e5) } 1-0